Cogmind - Beta 14 @@@ ROGUE MODE // 2024.10.24 @ 14:28:10 Player: WazdakkaGutsmek Result: Destroyed self with Grenade Launcher Performance ------------- Evolutions (0) 0 Regions Visited (2) 400 Robots Destroyed (16) 80 Value Destroyed (224) 224 Prototype IDs (2) 40 Alien Tech Used (0) 0 Bonus (0) 0 TOTAL SCORE: 744 Bonus ------- None Cogmind --------- Core Integrity 0/250 Matter 155/300 Energy 100/100 System Corruption 5% Temperature Cool (0) Movement Core (50) Location -10/Mines Parts ------- > --- POWER (1) -------- (None) > --- PROPULSION (2) --- (None) > --- UTILITY (2) ------ (None) > --- WEAPON (2) ------- Grenade Launcher > --- INVENTORY (5) ---- Light Ion Engine Beam Cannon Datajack Peak State ------------ > --- POWER ------------ Ion Engine > --- PROPULSION ------- Light Treads Light Treads > --- UTILITY ---------- Small Storage Unit Huge Storage Unit > --- WEAPON ----------- Beam Cannon Beam Cannon > --- INVENTORY -------- Light Ion Engine Light Treads Beam Cannon Beam Cannon Grenade Launcher Datajack [Rating: 7] Favorites ----------- Power Ion Engine Engine Ion Engine Propulsion Light Treads Treads Light Treads Leg Aluminum Leg Utility Huge Storage Unit Storage Huge Storage Unit Processor Targeting Computer Weapon Beam Cannon Energy Gun EM Pulse Gun Energy Cannon Beam Cannon Ballistic Gun Light Assault Rifle Ballistic Cannon Light Cannon Launcher Grenade Launcher Build | -11 -10 -10 ------- Run | Yrd Mat Min Slots Evolved . | . . . Power . | . . . Propulsion . | . . . Utility . | . . . Weapon . | . . . Parts Attached 9 | . 7 2 Power . | . . . Engine . | . . . Core . | . . . Reactor . | . . . Propulsion 3 | . 2 1 Treads 3 | . 2 1 Leg . | . . . Wheel . | . . . Hover . | . . . Flight . | . . . Utility 2 | . 2 . Device . | . . . Storage 1 | . 1 . Processor 1 | . 1 . Hackware . | . . . Protection . | . . . Artifact . | . . . Weapon 4 | . 3 1 Energy Gun . | . . . Energy Cannon 2 | . 2 . Ballistic Gun . | . . . Ballistic Cannon 1 | . 1 . Launcher 1 | . . 1 Special Weapon . | . . . Impact Weapon . | . . . Slashing Weapon . | . . . Piercing Weapon . | . . . Special Melee Weapon . | . . . Unidentified Prototypes . | . . . Parts Lost 2 | . 1 1 Power . | . . . Propulsion . | . . . Utility 1 | . . 1 Weapon 1 | . 1 . Highest Loss Streak 1 | . 1 1 To Critical Strikes . | . . . Average Slot Usage (%) 78 | . 86 49 Engine 12 | . 14 5 Treads 19 | . 20 14 Leg 5 | . 7 . Storage 12 | . 14 5 Processor 2 | . 2 4 Energy Gun 2 | . 2 . Energy Cannon 18 | . 20 10 Ballistic Gun 2 | . 3 . Launcher 1 | . . 7 Peak Build Rating 7 | 6 7 7 Average Rating 5 | 6 6 3 On Entrance 6 | 6 6 7 Naked Turns 33 | . . 33 Heaviest Build 91 | 13 91 91 Greatest Support 40 | 20 40 40 Greatest Overweight (x) 2 | . 2 2 Average Overweight (x) . | . . . Largest Inventory Capacity 25 | 8 25 25 Average Capacity 16 | 8 17 12 Most Carried 8 | 6 8 6 Average Carried 5 | 6 6 4 Final Capacity 25 | 8 25 5 Final Carried 6 | 6 6 3 Class Distribution -------------------- 100% | Mutant Dominant Class ---------------- Mutant | -10/Materials Mutant | -10/Mines Resources | -11 -10 -10 ----------- Run | Yrd Mat Min Matter Collected 333 | 205 96 32 Remotely . | . . . Salvage Created 393 | 74 204 115 Parts 23 | 6 16 1 Haulers Intercepted 2 | . 2 . Recyclers Shooed 1 | . . 1 Parts Field Recycled . | . . . Retrieved Matter . | . . . Parts Self-Destructed . | . . . Prevented . | . . . Kills | -11 -10 -10 ------- Run | Yrd Mat Min Combat Hostiles Destroyed 20 | . 9 11 Guns 3 | . 3 . Cannons 5 | . 2 3 AOE 12 | . 4 8 Classes Destroyed 7 | 2 3 2 Tunneler 1 | 1 . . Hauler 2 | . 2 . Recycler 1 | 1 . . Watcher 1 | . 1 . Swarmer 9 | . 9 . Grunt 2 | . . 2 Assembled 9 | . . 9 Best Kill Streak 7 | 2 6 7 Combat Bots Only 7 | . 6 7 Max Kills in Single Turn 4 | 1 4 2 Gunslinging . | . . . Exploded 4 | . 4 2 Melee . | . . . Uniques/NPCs Destroyed . | . . . Combat | -11 -10 -10 -------- Run | Yrd Mat Min Hostile Shots Fired 78 | . 40 38 Missed 28 | . 15 13 Damage Taken 821 | . 254 567 Core 251 | . 72 179 Absorbed by Shields . | . . . Core Remaining (%) 100 | 100 . . Volleys Fired 51 | 5 23 23 Largest 2 | 2 2 2 Hottest 120 | 60 120 120 Shots Fired 87 | 10 45 32 Gun 35 | 10 25 . Cannon 38 | . 20 18 Launcher 14 | . . 14 Special . | . . . Kinetic 27 | 5 22 . Thermal 32 | . 14 18 Explosive 14 | . . 14 Electromagnetic 14 | 5 9 . Robot Hit Streak 6 | 2 6 6 Robot Miss Streak 4 | 2 4 2 Penetration Max . | . . . Secondary Targets 1 | . 1 . Max Gunslinging Chain 1 | . 1 . Shots Hit Robots 39 | 3 24 12 Core Hits 36 | 3 11 22 Critical Kills 1 | . 1 . Critical Parts Destroyed . | . . . Critical Strikes 1 | . 1 . Meltdown 1 | . 1 . Melee Attacks . | . . . Impact . | . . . Slashing . | . . . Piercing . | . . . Sneak Attacks . | . . . Combat Hostiles . | . . . Follow-up Attacks . | . . . Damage Inflicted 1248 | 40 449 759 Guns 148 | 40 108 . Cannons 421 | . 207 214 Explosions 679 | . 134 545 Melee . | . . . Ramming . | . . . Kinetic 137 | . 137 . Thermal 471 | . 257 214 Explosive 545 | . . 545 Electromagnetic 95 | 40 55 . Impact . | . . . Slashing . | . . . Piercing . | . . . Highest Corruption 5 | . . 5 Average Corruption 5 | . . 5 Corruption Purged . | . . . Corruption Blocked . | . . . Effects 3 | . . 3 Matter Fused 1 | . . 1 Heat Flow Errors 1 | . . 1 Data Loss (minor) 1 | . . 1 Overload Shots . | . . . Overflow Damage 46 | . 4 42 Projectiles 8 | . 4 4 Explosions 38 | . . 38 Melee . | . . . Knockbacks 1 | . 1 . Impact . | . . . Kinetic 1 | . 1 . Secondary . | . . . Self-Inflicted Damage 15 | . . 15 Shots 1 | . . 1 Rammed . | . . . Targets Rammed . | . . . Kicked . | . . . Crushed . | . . . Highest Temperature 345 | 20 120 345 Average Temperature 80 | 15 33 150 Received Heat Transfer 45 | . . 45 Effects 1 | . . 1 Shutdowns 1 | . . 1 Siege Activations . | . . . Robots Corrupted . | . . . Combat Hostiles . | . . . Parts Fried . | . . . Impact Corruptions . | . . . Robots Melted 1 | . 1 . Combat Hostiles . | . . . Parts Melted 1 | . 1 . Heat Transferred 753 | . 309 444 Parts Sabotaged . | . . . Parts Stolen . | . . . Parts Stripped . | . . . Power Chain Reactions 1 | . 1 . Alert | -11 -10 -10 ------- Run | Yrd Mat Min Peak Influence 250 | 10 250 81 Initial 6 | . 6 . Average 80 | 7 89 60 Maximum Alert Level 1 | . 1 . Low Security (%) 86 | 100 81 100 Level 1 13 | . 18 . Level 2 . | . . . Level 3 . | . . . Level 4 . | . . . Level 5 . | . . . High Security . | . . . Max Security . | . . . Squads Dispatched . | . . . Investigation . | . . . Extermination . | . . . Reinforcement . | . . . Assault . | . . . Garrison . | . . . Intercept . | . . . Searches Triggered . | . . . Construction Impeded . | . . . Haulers Reinforced . | . . . Active Scanning Responses . | . . . Cargo Convoy Interrupts . | . . . Stealth | -11 -10 -10 --------- Run | Yrd Mat Min Distress Signals 1 | . 1 . Communications Jammed . | . . . Distress Signals . | . . . Times Spotted 43 | . 14 29 Peak Tracking Total 16 | . 6 16 Tactical Retreats 2 | . . 2 Traps | -11 -10 -10 ------- Run | Yrd Mat Min Traps Triggered 1 | . 1 . Indirectly . | . . . Trap Hack Attempts . | . . . Triggered . | . . . Disarmed . | . . . Reprogrammed . | . . . Reused . | . . . Traps Extracted . | . . . Installed . | . . . Triggered . | . . . Machines | -11 -10 -10 ---------- Run | Yrd Mat Min Machines Disabled 2 | . 2 . Max in Single Turn 1 | . 1 . Machines Repaired . | . . . Machines Dismantled . | . . . Machines Sabotaged . | . . . Overloaded Fab Kills . | . . . Hacking | -11 -10 -10 --------- Run | Yrd Mat Min Machines Accessed 6 | . 6 . Terminals 6 | . 6 . Fabricators . | . . . Repair Stations . | . . . Recycling Units . | . . . Scanalyzers . | . . . Garrison Access . | . . . Total Hacks 18 | . 18 . Successful 9 | . 9 . Failed 9 | . 9 . Catastrophic 1 | . 1 . Database Lockouts . | . . . Manual 12 | . 12 . Terminals 18 | . 18 . Fabricators . | . . . Repair Stations . | . . . Recycling Units . | . . . Scanalyzers . | . . . Garrison Access . | . . . Terminal Hacks 2 | . 2 . Robot Analysis 1 | . 1 . Prototype ID Bank 1 | . 1 . Fabricator Hacks . | . . . Repair Station Hacks . | . . . Recycling Unit Hacks . | . . . Scanalyzer . | . . . Garrison Access Hacks . | . . . Unauthorized Hacks 7 | . 7 . Terminals 7 | . 7 . Botnet 1 | . 1 . Skim 6 | . 6 . Fabricators . | . . . Repair Stations . | . . . Recycling Units . | . . . Scanalyzers . | . . . Garrison Access . | . . . Data Cores Recovered . | . . . Used . | . . . Hacking Detections 5 | . 5 . Full Trace Events 1 | . 1 . Feedback Events . | . . . Feedback Blocked . | . . . Robot Schematics Acquired . | . . . Robots Built . | . . . Authchips . | . . . Time . | . . . Total Robot Build Rating . | . . . Part Schematics Acquired . | . . . Parts Built . | . . . Authchips . | . . . Time . | . . . Total Part Build Rating . | . . . Parts Repaired . | . . . Time . | . . . Parts Recycled . | . . . Recycled Matter . | . . . Retrieved Matter . | . . . Retrieved Components . | . . . Parts Scanalyzed . | . . . Part Schematics Acquired . | . . . Parts Damaged . | . . . Bothacking | -11 -10 -10 ------------ Run | Yrd Mat Min Used RIF Installer . | . . . Robots Hacked . | . . . Non-combat . | . . . Combat . | . . . Robot Hacks Applied . | . . . Relay Couplers Released . | . . . Fabnet Peak Effective % . | . . . Robots Rewired . | . . . Allies Hacked . | . . . Hacks Repelled . | . . . Allies | -11 -10 -10 -------- Run | Yrd Mat Min Total Allies . | . . . Largest Group . | . . . Highest-Rated Group . | . . . Highest-Rated Ally . | . . . Total Orders . | . . . Ally Attacks . | . . . Total Damage . | . . . Kills . | . . . Allies Corrupted . | . . . Allies Melted . | . . . Intel | -11 -10 -10 ------- Run | Yrd Mat Min Robot Analysis Total 1 | . 1 . Derelict Logs Recovered . | . . . Drone Launches . | . . . Drone Recoveries . | . . . Exploration | -11 -10 -10 ------------- Run | Yrd Mat Min Turns Passed 1385 | 37 1032 316 Spaces Moved 631 | 20 436 175 Core 108 | . . 108 Treads 329 | . 262 67 Legs 194 | 20 174 . Wheels . | . . . Hover . | . . . Flight . | . . . Fastest Speed 50 | 120 120 50 Average Speed 176 | 120 202 118 Slowest Speed 320 | 120 320 320 Overloaded Moves . | . . . Propulsion Burnouts . | . . . Robots Hopped . | . . . Cave-ins Triggered 1 | . . 1 Exploration Rate (%) 35 | 4 75 26 Regions Visited 2 Branch Regions 1 Pre-discovered Areas . | . . . Known Exits Taken . | . . . Unknown Exits Taken 2 | 1 1 . Scrap Searched . | . . . Spaces Dug . | . . . Terrain Destroyed 82 | . 2 80 Melee . | . . . Projectile . | . . . AOE 82 | . 2 80 Terrain Rammed . | . . . Walls Destroyed . | . . . Machines Disabled . | . . . Actions | -11 -10 -10 --------- Run | Yrd Mat Min Total 824 | 24 547 253 Wait 121 | . 69 52 Move 629 | 19 435 175 Hop . | . . . Pick Up 5 | . 5 . Fast Attach 5 | . 5 . Attach 4 | . 2 2 Detach . | . . . Swap . | . . . Drop 9 | . 8 1 Fire 51 | 5 23 23 Melee . | . . . Ram . | . . . Kick . | . . . Crush . | . . . Escape Stasis . | . . . Rewire . | . . . Trap . | . . . Miscellaneous . | . . . Route ------- -11/Scrapyard -10/Materials (discovered 5 exits: *Mat x3 / [*Min] / Sub) -10/Mines (discovered 1 exit: *Mat) History --------- Turn | Location | Event 16 | -11/Scrapyard | Discovered new exit (range 3) 38 | -11/Scrapyard | Entered Materials 139 | -10/Materials | Discovered new exit (range 16) 326 | -10/Materials | Build established: Mutant 340 | -10/Materials | Discovered new exit (range 15) 730 | -10/Materials | Discovered new exit (range 14) 838 | -10/Materials | Derelicts attacked the area 875 | -10/Materials | Learned 2 Storage zone layouts 912 | -10/Materials | Learned 4 Subcaves zone layouts 941 | -10/Materials | Identified exit to Materials 941 | -10/Materials | Identified exit to Subcaves 962 | -10/Materials | Learned Storage trap positions 973 | -10/Materials | Learned Storage trap positions 995 | -10/Materials | Learned location of 2 exits from Materials 1025 | -10/Materials | Learned Storage trap positions 1070 | -10/Materials | Entered Mines 1157 | -10/Mines | Assembled infested the area 1195 | -10/Mines | Released all parts (6) 1196 | -10/Mines | Core integrity fell below 50% 1252 | -10/Mines | Core integrity fell below 20% 1291 | -10/Mines | Destroyed 7 combat bots 1332 | -10/Mines | Crushed by falling debris 1381 | -10/Mines | Discovered exit to Materials (range 16) 1386 | -10/Mines | Destroyed self with Grenade Launcher Last Messages --------------- 01328_ U-05 Engineer lays Concrete. 01331_ The unstable cave ceiling collapses. 01332_ Crushed by falling debris. 01332_ Huge Storage Unit crushed. 01332_ U-05 Engineer lays Concrete. 01337_ The unstable cave ceiling collapses. 01339_ U-05 Engineer lays Concrete. 01347_ Dropped Lgt. Treads. 01360_ System corrupted: Heat flow error (+273). 01367_ R-06 Scavenger collects Beam Cannon. 01369_ U-05 Engineer lays Concrete. 01370_ U-05 Engineer builds a Wall. 01378_ K-01 Serf collects debris. 01380_ U-05 Engineer forms the Earth. 01381_ U-05 Engineer lays Concrete. 01381_ U-05 Engineer forms the Earth. 01381_ EXIT=FOUND: MATERIALS 01382_ U-05 Engineer lays Concrete. 01383_ Acquired 15 matter. 01384_ U-05 Engineer builds a Wall. Map ----- +----------------------------------------------------+ | ???####== #??????# #?????????????????????? | | ??????##%!#??????# #?????????????????????? | | ???????#=*#??????# ###???????????????????? | | ???????# #????### # #???????????????????? | | ???????# ##??## # #???????????????????? | | ???????# #### # #???????????????????? | | ???????## ## # ## # #???????????????????? | | ????????## ## # # # #?#?????????????????? | | ?????????# # # # # # #?????????????????? | | ???????### ##### ### #?????????????????? | | ??????## % #?????????????????? | | ??????# # #?????????????????? | | ??????## # #### ####?????????????????? | | ?????## # # ## ##????????????????????? | | ?????# ### ## #????????????????????? | | ?????# # ##????????????????????? | | ?????# # # ###??????????????????? | | ?????# # ## ##?????????????????? | | ?????# # # ### ## #?????????????????? | | ?????# # # # #### #?????????????????? | | ?????## # #?## ## #?????????????????? | | ?????## ##????# ##? #?????????????????? | | ?????# =###?????# #???#?????????????????? | | ?????# ## #??????## ### #?????????????????? | | ?????# ?# #?????## #?????????????????? | | ?????# ?# #?????# @ #####?????????????????? | | ?????# ?# #?????# #?????????????????????? | | ?????# ## #?????# #?????????????????????? | | ?????# ## #?????# #?????????????????????? | | ?????# ## ##????# #?????????????????????? | | ?????# ## ##??? ?????????????????????? | | ????## #??? ?????????????????????? | | ???## ##?# < ????????????????????? | | ???# #?# ????????????????????? | | ???# ## #?#""" ????????????????????? | | ??## #### ###""" #???????????????????? | | ??# " #### ##"""ss ???????????????????? | | ??# ## #???? s #???????????????????? | | ??## #????####???????????????????? | | ???# #???????????????????????????? | | ???## ##???????????????????????????? | | ????## ##????????????????????????????? | | ?????### #?????????????????????????????? | | ???????## ##?????????????????????????????? | | ????????####??????????????????????????????? | | ??????????????????????????????????????????? | | ??????????????????????????????????????????? | | ??????????????????????????????????????????? | | ??????????????????????????????????????????? | | ??????????????????????????????????????????? | +----------------------------------------------------+ Best States ------------- Heat Dissipation 25 Energy Generation 10 Energy Capacity 250 Matter Stores 300 Matter Capacity 300 Sight Range 16 Terrain Scan Density 10 Evasion (%) 55 Targeting Accuracy 5 Recoil Reduction 2 Item Schematics ----------------- None Robot Schematics ------------------ None Fabricated ------------ Nothing Alien Tech Used ----------------- None Achievements -------------- None Challenges ------------ None Game ------ Seed ContainmentBoreReplica Manual? 0 Play Time 00:11:23 Cumulative 78.1 hours Start 2024.10.24 @ 14:19:34 End 2024.10.24 @ 14:28:10 Sessions 1 Manual Loads 0 Difficulty Rogue Special Mode None Game No. 74 Rogue 56 Adventurer 16 Explorer 2 Win Type - Total 1 Types 1/0/0/0/0/0/0/0/0 Lore% 20 Gallery% 47 Achievement% 41 Wizard Run 0 Options --------- Layout 2 ASCII 0 Keyboard 0 Movement Mouse Keybinds 1 Fullscreen 2 Font 24/Terminus Map View 50x44 Zoom Use 0% Tactical HUD 1 Map Filters NONE Filters NONE Steam X RUN: 5b7809f9-d525-45d7-9281-414149c5d1e9